[Event "Late-Titled-Tuesday-Blitz-June-18-2024"]
[Site "Chess.com"]
[Date "2024.06.18"]
[Round "10"]
[White "wonderfultime"]
[Black "mishanick"]
[Result "1-0"]
[WhiteElo "3062"]
[BlackElo "3156"]
[TimeControl "180+1"]
[EndTime "15:56:55 PDT"]
[Termination "wonderfultime won by checkmate"]

1. d4 {[%clk 0:02:57.4]} 1... Nf6 {[%clk 0:02:59.6]} 2. Nf3 {[%clk 0:02:50.3]}
2... d5 {[%clk 0:02:59.7]} 3. Bf4 {[%clk 0:02:50.6]} 3... c5 {[%clk 0:02:59.9]}
4. c3 {[%clk 0:02:50.6]} 4... e6 {[%clk 0:02:58.8]} 5. e3 {[%clk 0:02:50.9]}
5... Bd6 {[%clk 0:02:58.9]} 6. Nbd2 {[%clk 0:02:51.2]} 6... O-O {[%clk 0:02:56]}
7. Bd3 {[%clk 0:02:50.2]} 7... Bxf4 {[%clk 0:02:52.7]} 8. exf4 {[%clk
0:02:50.4]} 8... cxd4 {[%clk 0:02:52.8]} 9. Nxd4 {[%clk 0:02:48.8]} 9... Qb6
{[%clk 0:02:52.6]} 10. Rb1 {[%clk 0:02:34]} 10... Qd6 {[%clk 0:02:51.4]} 11. g3
{[%clk 0:02:21.9]} 11... e5 {[%clk 0:02:51.5]} 12. fxe5 {[%clk 0:02:22.4]} 12...
Qxe5+ {[%clk 0:02:51.9]} 13. Qe2 {[%clk 0:02:23.1]} 13... Qc7 {[%clk 0:02:52.1]}
14. O-O {[%clk 0:02:21]} 14... Nc6 {[%clk 0:02:50.8]} 15. Nxc6 {[%clk
0:01:58.8]} 15... bxc6 {[%clk 0:02:50.2]} 16. Rfe1 {[%clk 0:01:59.7]} 16... Bg4
{[%clk 0:02:49.1]} 17. Qe3 {[%clk 0:01:57.6]} 17... c5 {[%clk 0:02:46.2]} 18. b4
{[%clk 0:01:56]} 18... Rfc8 {[%clk 0:02:40.7]} 19. Ba6 {[%clk 0:01:36.6]} 19...
d4 {[%clk 0:02:28.5]} 20. cxd4 {[%clk 0:01:35.2]} 20... Re8 {[%clk 0:02:29.1]}
21. Qd3 {[%clk 0:01:19.2]} 21... Rxe1+ {[%clk 0:02:27.8]} 22. Rxe1 {[%clk
0:01:20.1]} 22... cxb4 {[%clk 0:02:27.2]} 23. Ne4 {[%clk 0:01:20.1]} 23... Qb6
{[%clk 0:01:55.1]} 24. Nxf6+ {[%clk 0:01:16.9]} 24... Qxf6 {[%clk 0:01:54.1]}
25. Qe4 {[%clk 0:01:17.4]} 25... Rf8 {[%clk 0:01:54.1]} 26. Bd3 {[%clk
0:01:15.4]} 26... Qg6 {[%clk 0:01:51.5]} 27. Qe3 {[%clk 0:01:10.8]} 27... Bf5
{[%clk 0:01:50.9]} 28. Bc4 {[%clk 0:01:10.4]} 28... h6 {[%clk 0:01:40]} 29. d5
{[%clk 0:01:10.6]} 29... Rc8 {[%clk 0:01:30.4]} 30. Bb3 {[%clk 0:01:10]} 30...
a5 {[%clk 0:00:38.8]} 31. Qe7 {[%clk 0:01:07.2]} 31... Qf6 {[%clk 0:00:24.5]}
32. d6 {[%clk 0:01:04.1]} 32... Rd8 {[%clk 0:00:17.1]} 33. Bxf7+ {[%clk
0:00:52.3]} 33... Kh7 {[%clk 0:00:17.7]} 34. Qxf6 {[%clk 0:00:13.8]} 34... gxf6
{[%clk 0:00:18.6]} 35. Rd1 {[%clk 0:00:14.5]} 35... Bc2 {[%clk 0:00:14.9]} 36.
Rd4 {[%clk 0:00:13.7]} 36... Kg7 {[%clk 0:00:12.7]} 37. Be6 {[%clk 0:00:13.6]}
37... f5 {[%clk 0:00:13]} 38. Bc4 {[%clk 0:00:12.6]} 38... Kf6 {[%clk
0:00:12.7]} 39. Bb5 {[%clk 0:00:13.2]} 39... Ke5 {[%clk 0:00:06.8]} 40. Rd2
{[%clk 0:00:13.5]} 40... b3 {[%clk 0:00:06.8]} 41. axb3 {[%clk 0:00:12.1]} 41...
Bxb3 {[%clk 0:00:07.4]} 42. d7 {[%clk 0:00:09.1]} 42... a4 {[%clk 0:00:07.8]}
43. f4+ {[%clk 0:00:07.8]} 43... Ke6 {[%clk 0:00:07.2]} 44. Rd3 {[%clk
0:00:07.7]} 44... Ke7 {[%clk 0:00:05.4]} 45. Kf2 {[%clk 0:00:06.6]} 45... Ke6
{[%clk 0:00:02]} 46. Ke3 {[%clk 0:00:06.3]} 46... Ke7 {[%clk 0:00:01]} 47. Kd2
{[%clk 0:00:06.6]} 47... Rb8 {[%clk 0:00:01]} 48. Re3+ {[%clk 0:00:05]} 48...
Kf7 {[%clk 0:00:01]} 49. Re8 {[%clk 0:00:05.6]} 49... Rxb5 {[%clk 0:00:01.1]}
50. d8=Q {[%clk 0:00:05.5]} 50... Rd5+ {[%clk 0:00:02]} 51. Qxd5+ {[%clk
0:00:06]} 51... Bxd5 {[%clk 0:00:02.8]} 52. Re5 {[%clk 0:00:06.7]} 52... Be4
{[%clk 0:00:02.8]} 53. Ra5 {[%clk 0:00:07.2]} 53... Kg6 {[%clk 0:00:03.5]} 54.
Ke3 {[%clk 0:00:05.9]} 54... Kh5 {[%clk 0:00:03.7]} 55. h3 {[%clk 0:00:06.5]}
55... Bc2 {[%clk 0:00:04.1]} 56. g4+ {[%clk 0:00:04.6]} 56... Kg6 {[%clk
0:00:04.5]} 57. Ra6+ {[%clk 0:00:04.8]} 57... Kg7 {[%clk 0:00:04.6]} 58. g5
{[%clk 0:00:05.4]} 58... hxg5 {[%clk 0:00:01.1]} 59. fxg5 {[%clk 0:00:06.3]}
59... Kh7 {[%clk 0:00:01.5]} 60. Kf4 {[%clk 0:00:06.5]} 60... Bd3 {[%clk
0:00:02.1]} 61. Rxa4 {[%clk 0:00:06.3]} 61... Kg6 {[%clk 0:00:02.5]} 62. Ra3
{[%clk 0:00:06]} 62... Bc4 {[%clk 0:00:02.5]} 63. Rc3 {[%clk 0:00:06.2]} 63...
Bd5 {[%clk 0:00:03.1]} 64. Rc5 {[%clk 0:00:06.6]} 64... Be4 {[%clk 0:00:03.7]}
65. Re5 {[%clk 0:00:07.1]} 65... Kh5 {[%clk 0:00:04.3]} 66. Re6 {[%clk
0:00:07.6]} 66... Kh4 {[%clk 0:00:04.1]} 67. Rh6# {[%clk 0:00:08.1]} 1-0

[Event "Late-Titled-Tuesday-Blitz-June-18-2024"]
[Site "Chess.com"]
[Date "2024.06.18"]
[Round "10"]
[White "Rsnr"]
[Black "HalfIsCrayfish"]
[Result "0-1"]
[WhiteElo "2860"]
[BlackElo "2580"]
[TimeControl "180+1"]
[EndTime "15:56:59 PDT"]
[Termination "HalfIsCrayfish won on time"]

1. b3 {[%clk 0:03:00.6]} 1... d5 {[%clk 0:02:58]} 2. Bb2 {[%clk 0:03:01.5]} 2...
Nf6 {[%clk 0:02:57.4]} 3. e3 {[%clk 0:02:57.1]} 3... Bg4 {[%clk 0:02:55.8]} 4.
Be2 {[%clk 0:02:56.1]} 4... Bxe2 {[%clk 0:02:55.1]} 5. Qxe2 {[%clk 0:02:57]}
5... e6 {[%clk 0:02:54.4]} 6. f4 {[%clk 0:02:55.5]} 6... Bd6 {[%clk 0:02:53.4]}
7. Nf3 {[%clk 0:02:56]} 7... Nbd7 {[%clk 0:02:52.8]} 8. O-O {[%clk 0:02:56.4]}
8... c6 {[%clk 0:02:44.5]} 9. d3 {[%clk 0:02:55.8]} 9... Qc7 {[%clk 0:02:43.8]}
10. Nbd2 {[%clk 0:02:53.8]} 10... O-O-O {[%clk 0:02:33.5]} 11. d4 {[%clk
0:02:33.3]} 11... Ne4 {[%clk 0:02:01.2]} 12. Nxe4 {[%clk 0:02:22.7]} 12... dxe4
{[%clk 0:02:01.4]} 13. Ne5 {[%clk 0:02:23.6]} 13... Bxe5 {[%clk 0:01:35.1]} 14.
fxe5 {[%clk 0:02:24.5]} 14... f5 {[%clk 0:01:33.9]} 15. Ba3 {[%clk 0:02:01.8]}
15... c5 {[%clk 0:01:21.3]} 16. Rad1 {[%clk 0:01:25.9]} 16... Qa5 {[%clk
0:01:19.2]} 17. Bb2 {[%clk 0:01:25.9]} 17... Qxa2 {[%clk 0:00:58.2]} 18. Bc3
{[%clk 0:01:25.9]} 18... Qa6 {[%clk 0:00:58.9]} 19. Qh5 {[%clk 0:00:53]} 19...
g6 {[%clk 0:00:55.2]} 20. Qh6 {[%clk 0:00:53.7]} 20... Qc6 {[%clk 0:00:50.2]}
21. d5 {[%clk 0:00:15.4]} 21... exd5 {[%clk 0:00:51.1]} 22. e6 {[%clk
0:00:16.3]} 22... Qxe6 {[%clk 0:00:51.4]} 23. Bxh8 {[%clk 0:00:17]} 23... Rxh8
{[%clk 0:00:52.3]} 24. Qg7 {[%clk 0:00:16.6]} 24... Rg8 {[%clk 0:00:45.7]} 25.
Qxh7 {[%clk 0:00:16.9]} 25... Nf6 {[%clk 0:00:45.8]} 26. Qh4 {[%clk 0:00:12.8]}
26... g5 {[%clk 0:00:32.4]} 27. Qh6 {[%clk 0:00:11.1]} 27... Qe5 {[%clk
0:00:29.9]} 28. h3 {[%clk 0:00:11.4]} 28... d4 {[%clk 0:00:23.5]} 29. exd4
{[%clk 0:00:04.6]} 29... cxd4 {[%clk 0:00:24.4]} 30. Rxf5 {[%clk 0:00:02.8]}
30... Qxf5 {[%clk 0:00:24]} 31. Rf1 {[%clk 0:00:03.5]} 31... Qe5 {[%clk
0:00:18.5]} 32. Rxf6 {[%clk 0:00:03.6]} 32... Re8 {[%clk 0:00:12.5]} 33. Rf1
{[%clk 0:00:01.8]} 33... e3 {[%clk 0:00:12.9]} 34. Re1 {[%clk 0:00:02.5]} 34...
e2 {[%clk 0:00:13.6]} 35. Qh5 {[%clk 0:00:02.6]} 35... Qe3+ {[%clk 0:00:13.2]}
36. Kh2 {[%clk 0:00:02.3]} 36... Re7 {[%clk 0:00:13.4]} 37. Qg4+ {[%clk
0:00:02.4]} 37... Re6 {[%clk 0:00:08.6]} 38. Qf5 {[%clk 0:00:02.3]} 38... a6
{[%clk 0:00:07.1]} 39. Kh1 {[%clk 0:00:01.7]} 39... Kd7 {[%clk 0:00:04.2]} 40.
Qf7+ {[%clk 0:00:01.7]} 40... Kd6 {[%clk 0:00:04.8]} 41. Qf8+ {[%clk 0:00:02.2]}
41... Kd7 {[%clk 0:00:05.2]} 42. Qf7+ {[%clk 0:00:02.3]} 42... Kc6 {[%clk
0:00:05.8]} 43. Qf5 {[%clk 0:00:02.5]} 43... Qe5 {[%clk 0:00:04.6]} 44. Qf3+
{[%clk 0:00:02.8]} 44... Kc7 {[%clk 0:00:04.5]} 45. Qf7+ {[%clk 0:00:03.2]}
45... Re7 {[%clk 0:00:04.5]} 46. Qf3 {[%clk 0:00:03.8]} 46... a5 {[%clk
0:00:04.7]} 47. Kg1 {[%clk 0:00:03.6]} 47... Qe3+ {[%clk 0:00:03.7]} 48. Qxe3
{[%clk 0:00:04.3]} 48... Rxe3 {[%clk 0:00:04.6]} 49. Kf2 {[%clk 0:00:05.1]}
49... b5 {[%clk 0:00:05.3]} 50. Rxe2 {[%clk 0:00:05.5]} 50... Rxe2+ {[%clk
0:00:05]} 51. Kxe2 {[%clk 0:00:06.4]} 51... Kd6 {[%clk 0:00:02.5]} 52. Kd3
{[%clk 0:00:06.5]} 52... Kd5 {[%clk 0:00:01.9]} 53. g3 {[%clk 0:00:06.7]} 53...
a4 {[%clk 0:00:02.4]} 54. bxa4 {[%clk 0:00:07.6]} 54... bxa4 {[%clk 0:00:03.3]}
55. c3 {[%clk 0:00:07.9]} 55... a3 {[%clk 0:00:02.4]} 56. c4+ {[%clk 0:00:06.1]}
56... Kc5 {[%clk 0:00:03]} 0-1

[Event "Late-Titled-Tuesday-Blitz-June-18-2024"]
[Site "Chess.com"]
[Date "2024.06.18"]
[Round "10"]
[White "KaydenTroffChess"]
[Black "jcibarra"]
[Result "1-0"]
[WhiteElo "2821"]
[BlackElo "2988"]
[TimeControl "180+1"]
[EndTime "15:57:06 PDT"]
[Termination "KaydenTroffChess won by checkmate"]

1. d4 {[%clk 0:03:00.9]} 1... Nf6 {[%clk 0:02:59.2]} 2. Nf3 {[%clk 0:02:59.5]}
2... g6 {[%clk 0:02:59.2]} 3. Bg5 {[%clk 0:02:59.7]} 3... Bg7 {[%clk 0:02:58.8]}
4. Nc3 {[%clk 0:03:00.2]} 4... d5 {[%clk 0:02:58.1]} 5. Bxf6 {[%clk 0:03:00.1]}
5... exf6 {[%clk 0:02:57.6]} 6. h4 {[%clk 0:02:59]} 6... h5 {[%clk 0:02:56.4]}
7. g3 {[%clk 0:02:59.5]} 7... O-O {[%clk 0:02:55.7]} 8. Bg2 {[%clk 0:02:59.7]}
8... c6 {[%clk 0:02:53.3]} 9. e3 {[%clk 0:02:59.9]} 9... Re8 {[%clk 0:02:52.3]}
10. O-O {[%clk 0:02:59.5]} 10... Nd7 {[%clk 0:02:51]} 11. Ne2 {[%clk 0:02:59.2]}
11... f5 {[%clk 0:02:35]} 12. Rc1 {[%clk 0:02:59.2]} 12... Nf6 {[%clk
0:02:35.2]} 13. c4 {[%clk 0:02:57.5]} 13... dxc4 {[%clk 0:02:35]} 14. Rxc4
{[%clk 0:02:57.4]} 14... Be6 {[%clk 0:02:35.6]} 15. Ra4 {[%clk 0:02:47.3]} 15...
b5 {[%clk 0:02:28.4]} 16. Ra3 {[%clk 0:02:41.2]} 16... Bf8 {[%clk 0:02:22.3]}
17. Rc3 {[%clk 0:02:40.2]} 17... Ne4 {[%clk 0:01:37]} 18. Rxc6 {[%clk 0:02:38]}
18... Bxa2 {[%clk 0:01:36.8]} 19. Nf4 {[%clk 0:01:44]} 19... Bc4 {[%clk
0:01:30.1]} 20. Ne5 {[%clk 0:01:03.3]} 20... Bxf1 {[%clk 0:01:21.4]} 21. Qxf1
{[%clk 0:01:03.2]} 21... Bd6 {[%clk 0:01:11.5]} 22. Bxe4 {[%clk 0:00:55.9]}
22... fxe4 {[%clk 0:01:08.2]} 23. Qxb5 {[%clk 0:00:55.1]} 23... Rb8 {[%clk
0:01:06.4]} 24. Qa4 {[%clk 0:00:34.3]} 24... Bxe5 {[%clk 0:01:01.7]} 25. dxe5
{[%clk 0:00:34.4]} 25... Rxe5 {[%clk 0:00:54.3]} 26. Qc4 {[%clk 0:00:25.5]}
26... Kg7 {[%clk 0:00:30.3]} 27. Rc7 {[%clk 0:00:18.7]} 27... Qd1+ {[%clk
0:00:23.5]} 28. Kh2 {[%clk 0:00:18]} 28... Rf5 {[%clk 0:00:23.9]} 29. Qc3+
{[%clk 0:00:13.5]} 29... Kh7 {[%clk 0:00:20.5]} 30. Rxa7 {[%clk 0:00:06.9]}
30... Rd8 {[%clk 0:00:16.6]} 31. Nh3 {[%clk 0:00:05.9]} 31... Qf3 {[%clk
0:00:14]} 32. Rxf7+ {[%clk 0:00:04]} 32... Rxf7 {[%clk 0:00:07.1]} 33. Ng5+
{[%clk 0:00:04.4]} 33... Kh6 {[%clk 0:00:07.7]} 34. Nxf3 {[%clk 0:00:03.4]}
34... Rxf3 {[%clk 0:00:08.6]} 35. Kg2 {[%clk 0:00:04]} 35... Rdf8 {[%clk
0:00:09.1]} 36. Qd2 {[%clk 0:00:03.8]} 36... R3f5 {[%clk 0:00:07.9]} 37. b4
{[%clk 0:00:04.5]} 37... Rb5 {[%clk 0:00:06.5]} 38. Qd4 {[%clk 0:00:04.9]} 38...
Rbf5 {[%clk 0:00:06.5]} 39. Qb2 {[%clk 0:00:05]} 39... Rb8 {[%clk 0:00:05.3]}
40. Qd4 {[%clk 0:00:03.8]} 40... Rbf8 {[%clk 0:00:05.1]} 41. Qd2 {[%clk
0:00:04.2]} 41... Rb8 {[%clk 0:00:04.8]} 42. Kh2 {[%clk 0:00:04]} 42... Rbf8
{[%clk 0:00:04.4]} 43. Kg1 {[%clk 0:00:04.7]} 43... Rb8 {[%clk 0:00:04.7]} 44.
Qd4 {[%clk 0:00:05.1]} 44... Rbf8 {[%clk 0:00:04.3]} 45. Qb2 {[%clk 0:00:05.5]}
45... Rb8 {[%clk 0:00:04.2]} 46. Qd2 {[%clk 0:00:04.6]} 46... Rfb5 {[%clk
0:00:04.2]} 47. Qc3 {[%clk 0:00:03.7]} 47... Rxb4 {[%clk 0:00:04.2]} 48. Qe5
{[%clk 0:00:04.1]} 48... Rf8 {[%clk 0:00:03.3]} 49. Qe7 {[%clk 0:00:03.6]} 49...
Rfb8 {[%clk 0:00:03.1]} 50. Qg5+ {[%clk 0:00:03.6]} 50... Kh7 {[%clk 0:00:03.7]}
51. Qe7+ {[%clk 0:00:03.9]} 51... Kh6 {[%clk 0:00:04.2]} 52. Kg2 {[%clk
0:00:04.5]} 52... Rc4 {[%clk 0:00:03.8]} 53. Qg5+ {[%clk 0:00:04.3]} 53... Kh7
{[%clk 0:00:03.8]} 54. Qe7+ {[%clk 0:00:04.9]} 54... Kh6 {[%clk 0:00:04.4]} 55.
Qe5 {[%clk 0:00:05.4]} 55... Rbc8 {[%clk 0:00:04.7]} 56. Qf6 {[%clk 0:00:05.1]}
56... Kh7 {[%clk 0:00:05.2]} 57. Qf4 {[%clk 0:00:04.4]} 57... Ra4 {[%clk
0:00:04.3]} 58. g4 {[%clk 0:00:04.8]} 58... hxg4 {[%clk 0:00:04.1]} 59. Qxg4
{[%clk 0:00:05.7]} 59... Rac4 {[%clk 0:00:04.6]} 60. h5 {[%clk 0:00:05.8]} 60...
gxh5 {[%clk 0:00:05.5]} 61. Qxh5+ {[%clk 0:00:06.6]} 61... Kg7 {[%clk 0:00:06]}
62. Qg5+ {[%clk 0:00:07.2]} 62... Kf7 {[%clk 0:00:06.5]} 63. Qf5+ {[%clk
0:00:07.9]} 63... Ke7 {[%clk 0:00:07]} 64. Qe5+ {[%clk 0:00:08.5]} 64... Kd7
{[%clk 0:00:07.6]} 65. Qd5+ {[%clk 0:00:09]} 65... Ke7 {[%clk 0:00:08.3]} 66.
Qe5+ {[%clk 0:00:09.5]} 66... Kd7 {[%clk 0:00:08.8]} 67. Qd5+ {[%clk 0:00:09.1]}
67... Ke7 {[%clk 0:00:09.4]} 68. Kg3 {[%clk 0:00:09.6]} 68... R8c5 {[%clk
0:00:08.6]} 69. Qb7+ {[%clk 0:00:09.8]} 69... Ke6 {[%clk 0:00:08.7]} 70. Qa6+
{[%clk 0:00:09.3]} 70... Kf5 {[%clk 0:00:08.3]} 71. Qh6 {[%clk 0:00:08.4]} 71...
Ke5 {[%clk 0:00:08.2]} 72. Kg4 {[%clk 0:00:08.3]} 72... Rc1 {[%clk 0:00:07.6]}
73. Qg7+ {[%clk 0:00:08.4]} 73... Kd5 {[%clk 0:00:07.8]} 74. Kf4 {[%clk
0:00:08.8]} 74... R1c4 {[%clk 0:00:07.3]} 75. Qd7# {[%clk 0:00:08.9]} 1-0

[Event "Late-Titled-Tuesday-Blitz-June-18-2024"]
[Site "Chess.com"]
[Date "2024.06.18"]
[Round "10"]
[White "PapaieDudu"]
[Black "Zq1"]
[Result "0-1"]
[WhiteElo "2374"]
[BlackElo "2492"]
[TimeControl "180+1"]
[EndTime "15:57:13 PDT"]
[Termination "Zq1 won by resignation"]

1. Nf3 {[%clk 0:03:00.9]} 1... Nf6 {[%clk 0:02:58.6]} 2. d4 {[%clk 0:03:01.4]}
2... e6 {[%clk 0:02:55.9]} 3. c4 {[%clk 0:03:02.2]} 3... a6 {[%clk 0:02:55.8]}
4. Nc3 {[%clk 0:03:03]} 4... c5 {[%clk 0:02:52.6]} 5. Bg5 {[%clk 0:03:03.9]}
5... cxd4 {[%clk 0:02:49.5]} 6. Nxd4 {[%clk 0:03:04.8]} 6... Bb4 {[%clk
0:02:45.4]} 7. e3 {[%clk 0:03:05.1]} 7... Qa5 {[%clk 0:02:39.8]} 8. Bxf6 {[%clk
0:03:02.5]} 8... Bxc3+ {[%clk 0:02:39.3]} 9. bxc3 {[%clk 0:03:01.7]} 9... Qxc3+
{[%clk 0:02:38.9]} 10. Ke2 {[%clk 0:03:02.1]} 10... gxf6 {[%clk 0:02:36.6]} 11.
Rc1 {[%clk 0:03:02.7]} 11... Qa5 {[%clk 0:02:35.1]} 12. h4 {[%clk 0:02:50.2]}
12... Nc6 {[%clk 0:02:22.8]} 13. h5 {[%clk 0:02:37.3]} 13... Qxa2+ {[%clk
0:02:19.5]} 14. Rc2 {[%clk 0:02:37.3]} 14... Qa5 {[%clk 0:02:19.4]} 15. f4
{[%clk 0:02:22]} 15... Qc7 {[%clk 0:02:12.6]} 16. Kf2 {[%clk 0:02:08.7]} 16...
b6 {[%clk 0:02:12.5]} 17. Be2 {[%clk 0:02:07.4]} 17... Bb7 {[%clk 0:02:12.4]}
18. Bf3 {[%clk 0:02:03.6]} 18... Rc8 {[%clk 0:02:06.9]} 19. f5 {[%clk
0:01:56.7]} 19... Ne5 {[%clk 0:02:05.6]} 20. fxe6 {[%clk 0:01:39.6]} 20... dxe6
{[%clk 0:02:04.2]} 21. c5 {[%clk 0:01:20]} 21... bxc5 {[%clk 0:01:58]} 22. Nb3
{[%clk 0:01:19]} 22... c4 {[%clk 0:01:54.3]} 23. Nd4 {[%clk 0:01:17.8]} 23...
O-O {[%clk 0:01:51]} 24. Qb1 {[%clk 0:00:54]} 24... Bxf3 {[%clk 0:01:41.4]} 25.
gxf3 {[%clk 0:00:53.9]} 25... Kh8 {[%clk 0:01:41.5]} 26. f4 {[%clk 0:00:50.9]}
26... Nd3+ {[%clk 0:01:34.9]} 27. Kf1 {[%clk 0:00:51.5]} 27... Rg8 {[%clk
0:01:28.9]} 28. Rg2 {[%clk 0:00:47.7]} 28... Rxg2 {[%clk 0:01:26.7]} 29. Kxg2
{[%clk 0:00:48]} 29... Rb8 {[%clk 0:01:24.2]} 30. Qa1 {[%clk 0:00:39.9]} 30...
c3 {[%clk 0:01:13.2]} 31. Qxa6 {[%clk 0:00:33.5]} 31... Qb7+ {[%clk 0:01:06.3]}
32. Qxb7 {[%clk 0:00:33.7]} 32... Rxb7 {[%clk 0:01:06]} 33. h6 {[%clk
0:00:32.2]} 33... Kg8 {[%clk 0:01:02.6]} 34. Ra1 {[%clk 0:00:31.3]} 34... Kf8
{[%clk 0:01:01.7]} 35. Nc6 {[%clk 0:00:28.5]} 35... Ke8 {[%clk 0:01:00.6]} 36.
Ra8+ {[%clk 0:00:26]} 36... Kd7 {[%clk 0:01:00.2]} 37. Rd8+ {[%clk 0:00:01.2]}
37... Kc7 {[%clk 0:00:58.2]} 38. Rxd3 {[%clk 0:00:02.1]} 38... Kxc6 {[%clk
0:00:52.8]} 39. Rxc3+ {[%clk 0:00:03]} 39... Kd5 {[%clk 0:00:52.9]} 40. Rd3+
{[%clk 0:00:03.9]} 40... Ke4 {[%clk 0:00:52.5]} 41. Rc3 {[%clk 0:00:04.8]} 41...
Kf5 {[%clk 0:00:50.9]} 42. Kg3 {[%clk 0:00:05.7]} 42... Kg6 {[%clk 0:00:50.5]}
43. Kf3 {[%clk 0:00:06.6]} 43... f5 {[%clk 0:00:49.3]} 44. Rc8 {[%clk
0:00:07.5]} 44... Kxh6 {[%clk 0:00:48.9]} 45. Rf8 {[%clk 0:00:08.4]} 45... Kg7
{[%clk 0:00:48.6]} 46. Rc8 {[%clk 0:00:09]} 46... Rb1 {[%clk 0:00:46]} 47. Rc2
{[%clk 0:00:09.2]} 47... Rg1 {[%clk 0:00:45.3]} 48. Kf2 {[%clk 0:00:09.1]} 48...
Rg6 {[%clk 0:00:43]} 49. Kf3 {[%clk 0:00:07.3]} 49... h5 {[%clk 0:00:42.6]} 50.
Rh2 {[%clk 0:00:06.8]} 50... Rh6 {[%clk 0:00:42.7]} 51. Kg3 {[%clk 0:00:07.4]}
51... h4+ {[%clk 0:00:35.9]} 52. Kf3 {[%clk 0:00:01.3]} 52... f6 {[%clk
0:00:31.9]} 53. Rh3 {[%clk 0:00:01.7]} 53... e5 {[%clk 0:00:30.6]} 54. Rh2
{[%clk 0:00:01.8]} 54... Kf7 {[%clk 0:00:29.5]} 55. Ra2 {[%clk 0:00:01.7]} 55...
h3 {[%clk 0:00:28.3]} 56. Ra7+ {[%clk 0:00:01.7]} 56... Kg6 {[%clk 0:00:27]} 57.
Ra1 {[%clk 0:00:01.7]} 57... h2 {[%clk 0:00:23.5]} 58. Rh1 {[%clk 0:00:01.9]}
58... Kf7 {[%clk 0:00:23.6]} 59. Kg2 {[%clk 0:00:02]} 59... Ke6 {[%clk
0:00:22.8]} 60. Ra1 {[%clk 0:00:01.8]} 60... Kd5 {[%clk 0:00:15.7]} 61. Rh1
{[%clk 0:00:01.8]} 61... Ke4 {[%clk 0:00:15]} 62. Kf2 {[%clk 0:00:02.2]} 62...
exf4 {[%clk 0:00:14.1]} 63. exf4 {[%clk 0:00:02.7]} 63... Kxf4 {[%clk
0:00:14.6]} 64. Kg2 {[%clk 0:00:03.2]} 64... Kg4 {[%clk 0:00:14.9]} 65. Kf2
{[%clk 0:00:03.2]} 65... f4 {[%clk 0:00:14.3]} 66. Kg2 {[%clk 0:00:03.5]} 66...
f3+ {[%clk 0:00:13.7]} 67. Kf2 {[%clk 0:00:04]} 67... Kf4 {[%clk 0:00:13.5]} 68.
Kf1 {[%clk 0:00:03.9]} 68... Kg3 {[%clk 0:00:13.1]} 69. Ke1 {[%clk 0:00:03.5]}
69... Kg2 {[%clk 0:00:12.6]} 70. Rf1 {[%clk 0:00:02.5]} 70... h1=Q {[%clk
0:00:12.1]} 71. Rxh1 {[%clk 0:00:02.9]} 0-1